bitfinex/quotes_SOLUSD_20240708
["timestamp","ask_amount","ask_price","bid_price","bid_amount"]
[1720404737472,100.0,130.36,130.3,15.6401]
[1720404737950,0.17,130.35,130.3,15.6401]
[1720404738658,100.0,130.32,130.29,12.35036329]
[1720404738859,100.0,130.32,130.26,15.7183]
[1720404739162,0.17,130.35,130.26,15.7183]
[1720404739366,6.2255,130.37,130.26,15.7183]
[1720404739367,100.0,130.33,130.26,15.7183]
[1720404739554,100.0,130.31,130.26,15.7183]
[1720404740170,0.17,130.34,130.28,45.0]
[1720404740171,100.17,130.34,130.28,45.0]
[1720404740572,100.0,130.31,130.26,15.7183]
[1720404740795,100.0,130.29,130.25,6.3606]
[1720404740967,100.0,130.29,130.24,6.22487684]
[1720404741169,100.0,130.29,130.22,22.0789]
[1720404741469,100.0,130.27,130.22,22.0789]
[1720404742059,100.0,130.25,130.2,40.71]
[1720404742269,0.17,130.3,130.2,40.71]
[1720404742270,100.0,130.23,130.2,40.71]
[1720404743474,100.0,130.27,130.21,20.0]
[1720404743882,100.0,130.25,130.21,20.0]
[1720404744079,100.0,130.25,130.2,40.71]
[1720404744480,100.0,130.25,130.18,69.16295397]
[1720404745974,100.0,130.25,130.19,20.0]
[1720404746185,100.0,130.22,130.19,20.0]
[1720404746483,100.0,130.22,130.18,63.0852]
[1720404746484,100.0,130.2,130.18,40.71]
[1720404746662,100.0,130.2,130.15,6.3192]
[1720404747070,100.0,130.2,130.13,41.5442514]
[1720404747071,100.0,130.18,130.13,41.5442514]
[1720404747875,100.0,130.15,130.13,41.5442514]
[1720404748366,0.17,130.19,130.13,41.5442514]
[1720404748693,100.0,130.18,130.13,41.5442514]
[1720404748868,0.17,130.19,130.13,41.5442514]
[1720404749181,100.17,130.19,130.13,41.5442514]
[1720404749700,100.0,130.23,130.13,41.5442514]
[1720404749869,100.0,130.22,130.17,40.71]
[1720404750065,100.0,130.22,130.18,45.0]
[1720404750482,22.7662,130.26,130.18,45.0]
[1720404750691,100.0,130.2,130.18,45.0]
[1720404750988,100.0,130.16,130.13,41.5442514]
[1720404752389,100.0,130.23,130.14,20.0]
[1720404753076,22.7662,130.26,130.14,20.0]
[1720404753273,100.0,130.21,130.13,41.5442514]
[1720404753578,100.0,130.2,130.14,20.0]
[1720404753889,282.8662,130.26,130.14,20.0]
[1720404753890,100.0,130.18,130.14,20.0]
[1720404754290,100.0,130.16,130.14,20.0]
[1720404754465,100.0,130.18,130.14,20.0]
[1720404755300,100.0,130.21,130.14,20.0]
[1720404755525,100.0,130.19,130.14,20.0]
[1720404757899,100.0,130.21,130.14,20.0]
[1720404758885,282.8662,130.26,130.14,20.0]
[1720404759080,100.0,130.2,130.14,20.0]
[1720404760594,100.0,130.18,130.14,20.0]
[1720404761182,100.0,130.2,130.14,20.0]
[1720404762188,100.0,130.17,130.14,20.0]
[1720404762606,100.0,130.2,130.14,20.0]
[1720404763097,100.0,130.18,130.14,20.0]
[1720404763298,100.0,130.2,130.14,20.0]
[1720404763897,100.0,130.16,130.13,0.8342514]
[1720404764502,100.0,130.18,130.13,0.8342514]
[1720404765979,282.8662,130.26,130.13,0.8342514]
[1720404766202,100.0,130.18,130.13,0.8342514]
[1720404767006,100.0,130.16,130.13,0.8342514]
[1720404767210,100.0,130.14,130.13,0.8342514]
[1720404768282,6.6103,130.18,130.13,0.8342514]
[1720404768283,100.0,130.15,130.13,0.8342514]
[1720404769402,0.17,130.14,130.13,0.8342514]
[1720404770479,6.6103,130.18,130.13,0.8342514]
[1720404770796,100.0,130.14,130.13,0.8342514]
[1720404772295,100.0,130.08,130.03,40.71]
[1720404772495,100.0,130.08,130.01,28.33619641]
[1720404773387,0.17,130.07,130.01,28.33619641]
[1720404773709,0.17,130.07,130.02,20.0]
[1720404774211,100.0,130.07,130.0,20.8342514]
[1720404774414,100.0,130.05,130.0,20.8342514]
[1720404774599,100.0,130.05,130.01,45.0]
[1720404774789,100.0,130.05,130.0,0.8342514]
[1720404775514,0.17,130.08,130.0,0.8342514]
[1720404775515,100.0,130.03,130.0,0.8342514]
[1720404777500,100.0,130.01,130.0,0.8342514]
[1720404777701,0.17,130.08,130.0,0.8342514]
[1720404777702,100.0,130.02,130.0,0.8342514]
[1720404778220,6.1993,130.01,130.0,0.8342514]
[1720404778393,6.3693,130.01,130.0,0.8342514]
[1720404778885,100.17,130.01,130.0,0.8342514]
[1720404779093,0.17,130.01,130.0,0.8342514]
[1720404779490,100.17,130.01,130.0,0.8342514]
[1720404782516,100.0,130.01,130.0,0.8342514]
[1720404783098,100.0,130.03,130.0,0.8342514]
[1720404783301,6.2103,130.08,130.0,0.8342514]
[1720404783499,100.0,130.03,130.0,0.8342514]
[1720404783706,100.0,130.03,130.0,20.8342514]
[1720404783911,100.0,130.03,130.01,45.0]
[1720404784301,100.0,130.02,130.01,45.0]
[1720404784807,100.17,130.02,130.01,45.0]
[1720404785009,100.0,130.02,130.01,45.0]
[1720404785416,6.2103,130.08,130.01,45.0]
[1720404785819,100.0,130.03,130.01,45.0]
[1720404786208,6.2103,130.08,130.0,0.8342514]
[1720404786401,100.0,130.01,130.0,0.8342514]
[1720404786603,100.17,130.01,130.0,0.8342514]
[1720404786806,100.0,130.01,130.0,0.8342514]
[1720404787413,100.0,130.03,130.0,0.8342514]
[1720404787724,100.0,130.03,130.0,41.5442514]
[1720404788118,100.0,130.03,130.01,45.0]
[1720404789621,100.0,130.03,130.02,20.0]
[1720404789925,100.0,130.03,130.02,65.0]
[1720404792322,100.0,130.07,130.02,65.0]
[1720404792507,100.0,130.07,130.03,45.0]
[1720404792710,100.0,130.07,130.04,20.0]
[1720404792909,100.0,130.07,130.05,45.0]
[1720404794426,100.0,130.06,130.05,45.0]
[1720404795024,15.7701,130.13,130.05,105.71]
[1720404795025,100.0,130.08,130.05,105.71]
[1720404795225,100.0,130.1,130.06,20.0]
[1720404795413,100.0,130.1,130.07,45.0]
[1720404795730,100.0,130.1,130.08,20.0]
[1720404796111,100.0,130.1,130.09,45.0]
[1720404796514,100.0,130.1,130.08,45.0]
[1720404797530,15.9184,130.17,130.09,20.0]
[1720404797833,100.0,130.14,130.09,20.0]
[1720404798023,100.0,130.14,130.1,45.0]
[1720404798219,100.0,130.14,130.11,20.0]
[1720404798421,100.0,130.16,130.12,45.0]
[1720404798723,100.0,130.16,130.13,20.0]
[1720404798922,100.0,130.16,130.14,45.0]
[1720404799143,106.5433,130.22,130.15,20.0]
[1720404799327,100.0,130.2,130.15,20.0]
[1720404799526,100.0,130.2,130.16,45.0]
[1720404799722,100.0,130.2,130.17,20.0]
[1720404799925,100.0,130.2,130.18,45.0]
[1720404803836,100.0,130.16,130.13,40.71]
[1720404804023,0.17,130.19,130.13,40.71]
[1720404804024,100.0,130.14,130.13,40.71]
[1720404804924,100.0,130.14,130.09,6.2757]
[1720404805113,100.0,130.14,130.1,40.71]
[1720404805319,100.0,130.12,130.1,40.71]
[1720404805515,100.0,130.09,130.06,63.23029417]
[1720404805721,100.0,130.08,130.06,40.71]
[1720404806136,6.6362,130.12,130.01,6.2757]
[1720404806344,100.0,130.06,130.01,6.2757]
[1720404806523,100.0,130.04,130.01,6.2757]
[1720404807416,100.0,130.04,130.02,20.0]
[1720404807821,15.6728,130.11,130.0,6.85718916]
[1720404808021,100.0,130.02,130.0,0.8342514]
[1720404808632,100.0,130.03,130.0,0.8342514]
[1720404808833,100.0,130.01,130.0,0.8342514]
[1720404812141,275.6028,130.11,130.0,0.8342514]
[1720404812342,275.6028,130.11,130.01,40.71]
[1720404812343,100.0,130.06,130.01,40.71]
[1720404812532,100.0,130.11,130.05,40.71]
[1720404812728,100.0,130.09,130.06,20.0]
[1720404812924,100.0,130.11,130.06,20.0]
[1720404813144,100.0,130.09,130.07,45.0]
[1720404813447,100.0,130.09,130.08,20.0]
[1720404813745,100.0,130.12,130.08,65.0]
[1720404813931,100.0,130.18,130.1,40.71]
[1720404814134,260.1,130.26,130.09,68.11]
[1720404814135,100.0,130.2,130.14,40.71]
[1720404814334,100.0,130.21,130.15,20.0]
[1720404814650,100.0,130.22,130.16,45.0]
[1720404814828,100.0,130.21,130.16,45.0]
[1720404815028,100.0,130.21,130.17,20.0]
[1720404815243,100.0,130.21,130.18,45.0]
[1720404817230,100.0,130.23,130.19,20.0]
[1720404817448,100.0,130.23,130.2,45.0]
[1720404817763,100.0,130.23,130.21,20.0]
[1720404817929,100.0,130.23,130.22,45.0]
[1720404819544,100.0,130.27,130.22,85.71]
[1720404819758,100.0,130.27,130.23,20.0]
[1720404819950,100.0,130.27,130.24,45.0]
[1720404820145,100.0,130.27,130.25,20.0]
[1720404820352,100.0,130.27,130.26,45.0]
[1720404822334,100.17,130.27,130.26,45.0]
[1720404823059,100.0,130.19,130.18,40.71]
[1720404823647,275.1,130.35,130.18,40.71]
[1720404823853,100.0,130.27,130.22,40.71]
[1720404824166,100.0,130.29,130.22,40.71]
[1720404824535,100.0,130.29,130.23,65.0]
[1720404825333,100.0,130.28,130.23,65.0]
[1720404825537,100.0,130.26,130.23,65.0]
[1720404827653,100.0,130.25,130.2,40.71]
[1720404827843,100.0,130.22,130.2,40.71]
[1720404828744,100.0,130.22,130.13,110.9963]
[1720404828940,100.0,130.2,130.13,47.1763]
[1720404829541,100.0,130.18,130.13,47.1763]
[1720404829858,100.0,130.16,130.13,40.71]
[1720404830463,21.5182,130.26,130.09,6.2932]
[1720404830464,100.0,130.14,130.09,0.6665904]
[1720404830658,100.0,130.14,130.09,40.71]
[1720404831849,100.0,130.14,130.1,20.0]
[1720404832051,100.0,130.14,130.11,45.0]
[1720404832351,100.0,130.14,130.12,20.0]
[1720404832749,100.0,130.11,130.09,40.71]
[1720404833060,100.0,130.13,130.09,40.71]
[1720404833262,100.0,130.13,130.1,1.03431846]
[1720404834049,100.0,130.13,130.1,66.03431846]
[1720404834244,100.0,130.13,130.11,1.03941438]
[1720404835372,100.0,130.13,130.1,65.0]
[1720404836845,100.0,130.08,130.0,7.1274514]
[1720404837045,100.0,130.08,130.02,40.71]
[1720404837544,100.0,130.06,130.02,40.71]
[1720404837749,100.0,130.06,130.0,13.38590391]
[1720404839766,100.0,130.06,130.01,20.0]
[1720404839963,15.5427,130.13,130.01,20.0]
[1720404840156,0.17,130.12,130.0,20.8342514]
[1720404840372,100.0,130.06,130.0,20.8342514]
[1720404840551,100.0,130.06,130.01,45.0]
[1720404840757,100.0,130.06,130.02,20.0]
[1720404840976,100.0,130.04,130.03,45.0]
[1720404841152,100.0,130.04,130.03,20.0]
[1720404841355,100.0,130.03,130.0,0.8342514]
[1720404841762,100.0,130.01,130.0,0.8342514]
[1720404841974,100.0,130.06,130.0,0.8342514]
[1720404842282,100.0,130.04,130.0,0.8342514]
[1720404842681,100.0,130.04,130.0,65.8342514]
[1720404843062,100.0,130.02,130.0,65.8342514]
[1720404846594,100.0,130.02,130.0,0.8342514]
[1720404847276,0.17,130.01,130.0,0.8342514]
[1720404848567,0.17,130.01,129.92,40.71]
[1720404848568,100.0,129.96,129.92,40.71]
[1720404848773,6.5134,130.01,129.87,23.9442514]
[1720404848774,100.0,129.93,129.89,40.71]
[1720404849174,100.0,129.97,129.89,40.71]
[1720404849374,100.0,129.95,129.89,40.71]
[1720404849694,100.0,129.95,129.89,63.82]
[1720404849892,100.0,129.95,129.89,40.71]
[1720404850074,100.0,129.91,129.87,0.8342514]
[1720404850281,100.0,129.91,129.88,40.71]
[1720404851314,100.0,129.93,129.88,40.71]
[1720404851600,6.5134,130.01,129.88,40.71]
[1720404851802,100.0,129.92,129.88,40.71]
[1720404852294,21.5134,130.01,129.89,20.0]
[1720404852508,100.0,129.9,129.89,20.0]
[1720404852809,100.0,129.9,129.88,40.71]
[1720404854591,100.0,129.9,129.89,45.0]
[1720404855788,100.0,129.88,129.87,0.8342514]
[1720404856091,6.3462,129.94,129.87,0.8342514]
[1720404856291,0.17,129.93,129.87,0.8342514]
[1720404856480,100.0,129.88,129.87,0.8342514]
[1720404857096,100.0,129.88,129.87,45.8342514]
[1720404857294,100.0,129.88,129.87,65.8342514]
[1720404858193,100.0,129.88,129.87,0.8342514]
[1720404858701,100.17,129.88,129.87,0.8342514]
[1720404860178,100.17,129.88,129.77,44.919]
[1720404860179,100.0,129.81,129.77,6.0142]
[1720404860479,100.0,129.81,129.76,40.71]
[1720404863094,22.8128,129.88,129.74,7.11516006]
[1720404863095,100.0,129.84,129.8,76.969222]
[1720404863471,100.0,129.84,129.81,20.0]
[1720404863676,15.0,129.96,129.82,45.0]
[1720404863677,100.0,129.87,129.82,45.0]
[1720404863896,100.0,129.89,129.84,40.71]
[1720404864097,100.0,129.89,129.85,65.0]
[1720404864577,100.0,129.87,129.85,65.0]
[1720404865398,100.0,129.85,129.84,40.71]
[1720404865597,100.0,129.81,129.8,36.259222]
[1720404865901,22.0419,129.9,129.8,36.259222]
[1720404866089,100.0,129.82,129.8,36.259222]
[1720404866492,100.0,129.84,129.8,36.259222]
[1720404866696,100.0,129.87,129.83,40.71]
[1720404866995,100.0,129.89,129.84,20.0]
[1720404867195,21.734,129.94,129.87,40.71]
[1720404867196,100.0,129.91,129.87,40.71]
[1720404867402,100.0,129.89,129.88,65.0]
[1720404867608,100.0,129.89,129.88,45.0]
[1720404868123,100.0,129.84,129.8,36.259222]
[1720404868597,100.0,129.81,129.8,36.259222]
[1720404869108,100.17,129.81,129.8,36.259222]
[1720404872204,100.17,129.81,129.8,81.259222]
[1720404872389,100.0,129.86,129.8,81.259222]
[1720404872702,100.0,129.83,129.81,66.53895775]
[1720404873180,100.0,129.83,129.81,65.0]
[1720404873385,100.0,129.82,129.81,65.0]
[1720404874385,100.0,129.83,129.81,65.0]
[1720404875286,100.0,129.85,129.81,65.0]
[1720404875781,100.0,129.82,129.81,65.0]
[1720404876215,100.0,129.82,129.81,45.0]
[1720404876587,100.0,129.87,129.81,65.0]
[1720404876912,100.0,129.89,129.83,40.71]
[1720404877113,100.0,129.89,129.84,65.17]
[1720404877322,100.0,129.86,129.84,65.0]
[1720404879427,100.0,129.88,129.84,65.0]
[1720404881191,100.0,129.86,129.84,65.0]
[1720404881809,6.4059,129.95,129.84,20.0]
[1720404882200,100.0,129.85,129.84,20.0]
[1720404883301,100.0,129.85,129.83,40.71]
[1720404883505,100.0,129.82,129.8,36.259222]
[1720404883699,100.0,129.81,129.8,36.259222]
[1720404886217,100.17,129.81,129.8,36.259222]
[1720404888020,6.2558,129.87,129.8,36.259222]
[1720404888021,100.0,129.82,129.8,36.259222]
[1720404889295,0.17,129.81,129.8,36.259222]
[1720404889500,100.17,129.81,129.8,36.259222]
[1720404890013,100.0,129.81,129.8,36.259222]
[1720404890808,100.17,129.81,129.8,36.259222]
[1720404891408,121.658,129.81,129.8,29.626222]
[1720404891720,121.658,129.81,129.68,21.6519]
[1720404891721,100.0,129.75,129.7,49.99]
[1720404893324,100.17,129.75,129.7,49.99]
[1720404894008,100.17,129.75,129.71,20.0]
[1720404894404,0.17,129.75,129.71,20.0]
[1720404894613,100.17,129.75,129.71,20.0]
[1720404894811,0.17,129.75,129.71,20.0]
[1720404895110,100.17,129.75,129.71,20.0]
[1720404895832,0.17,129.75,129.71,20.0]
[1720404896032,100.17,129.75,129.71,20.0]
[1720404896223,100.17,129.75,129.7,49.99]
[1720404896418,0.17,129.75,129.7,49.99]
[1720404896621,100.17,129.75,129.64,146.2999]
[1720404896820,100.17,129.75,129.65,6.10403621]
[1720404897426,100.17,129.75,129.64,123.1899]
[1720404898321,100.17,129.75,129.65,20.0]
[1720404902743,6.2709,129.75,129.64,73.1999]
[1720404902918,6.2709,129.75,129.62,0.8342514]
[1720404902919,100.0,129.63,129.62,0.8342514]
[1720404903439,100.17,129.63,129.62,0.8342514]
[1720404909521,100.0,129.6,129.59,0.04572441]
[1720404909720,100.17,129.6,129.59,0.04572441]
[1720404910542,100.0,129.6,129.59,0.04572441]
[1720404911134,100.17,129.6,129.59,0.04572441]
[1720404911523,106.3699,129.6,129.59,0.04572441]
[1720404912532,100.17,129.6,129.59,0.04572441]
[1720404912936,100.0,129.6,129.59,0.04572441]
[1720404913823,100.0,129.52,129.51,41.05]
[1720404914024,100.0,129.52,129.5,41.05]
[1720404914728,100.0,129.5,129.49,0.8342514]
[1720404914935,100.0,129.51,129.49,0.8342514]
[1720404915533,100.0,129.5,129.49,0.8342514]
[1720404917446,6.10283103,129.6,129.49,41.8842514]
[1720404917631,100.0,129.53,129.5,65.0]
[1720404917948,100.0,129.55,129.5,65.0]
[1720404918528,100.0,129.55,129.53,41.05]
[1720404918728,100.0,129.55,129.54,45.0]
[1720404920656,100.0,129.55,129.49,0.8342514]
[1720404920657,100.0,129.53,129.49,0.8342514]
[1720404920846,100.0,129.5,129.49,0.8342514]
[1720404921953,100.0,129.52,129.49,0.8342514]
[1720404922447,100.0,129.5,129.49,0.8342514]
[1720404923251,100.17,129.5,129.49,0.8342514]
[1720404924646,100.0,129.42,129.38,6.5122]
[1720404924836,100.0,129.45,129.38,47.5622]
[1720404925038,100.0,129.43,129.38,47.5622]
[1720404925636,100.0,129.41,129.38,6.5122]
[1720404926035,100.0,129.43,129.38,6.5122]
[1720404926330,100.0,129.41,129.36,0.8342514]
[1720404926535,100.0,129.39,129.36,0.8342514]
[1720404926949,100.0,129.41,129.36,0.8342514]
[1720404927159,100.0,129.39,129.36,0.8342514]
[1720404927838,100.0,129.45,129.36,0.8342514]
[1720404928042,100.0,129.47,129.38,41.05]
[1720404928345,100.0,129.43,129.38,41.05]
[1720404928644,100.0,129.43,129.36,41.8842514]
[1720404928957,100.0,129.4,129.36,41.8842514]
[1720404929141,100.0,129.38,129.36,41.8842514]
[1720404930756,100.0,129.38,129.37,45.0]
[1720404931053,100.0,129.41,129.37,45.0]
[1720404931355,100.0,129.41,129.38,20.0]
[1720404931537,100.0,129.41,129.39,45.0]
[1720404933178,100.0,129.41,129.4,20.0]
[1720404933352,100.0,129.43,129.4,65.0]
[1720404933542,100.0,129.43,129.4,20.0]
[1720404933859,100.0,129.43,129.41,45.0]
[1720404934361,100.0,129.37,129.36,41.8842514]
[1720404934743,100.0,129.41,129.36,41.8842514]
[1720404934948,100.0,129.39,129.36,0.8342514]
[1720404935155,100.0,129.37,129.36,0.8342514]
[1720404935859,100.0,129.4,129.36,0.8342514]
[1720404936065,100.0,129.42,129.36,0.8342514]
[1720404936249,100.0,129.4,129.36,0.8342514]
[1720404936955,100.0,129.37,129.36,45.8342514]
[1720404937161,100.0,129.37,129.36,0.8342514]
[1720404937362,100.0,129.4,129.36,20.8342514]
[1720404937660,100.0,129.38,129.37,20.0]
[1720404938160,100.0,129.38,129.36,0.8342514]
[1720404941365,0.17,129.37,129.36,0.8342514]
[1720404942346,0.17,129.37,129.29,16.3515]
[1720404942347,100.0,129.3,129.28,6.12345694]
[1720404942561,100.0,129.25,129.23,0.8342514]
[1720404944445,100.0,129.29,129.23,0.8342514]
[1720404944756,100.0,129.27,129.24,41.05]
[1720404945144,100.0,129.25,129.23,0.8342514]
[1720404945752,100.0,129.27,129.23,0.8342514]
[1720404946448,100.0,129.25,129.23,0.8342514]
[1720404947474,0.17,129.24,129.23,0.8342514]
[1720404948368,100.17,129.24,129.23,0.8342514]
[1720404948574,100.0,129.2,129.19,0.04586599]
[1720404949266,100.0,129.21,129.19,0.04586599]
[1720404950870,0.17,129.2,129.19,0.04586599]
[1720404951464,100.0,129.21,129.19,0.04586599]
[1720404953363,0.17,129.2,129.19,0.04586599]
[1720404955363,100.0,129.12,129.1,0.8342514]
[1720404956069,100.0,129.11,129.1,0.8342514]
[1720404957391,100.17,129.11,129.1,0.8342514]
[1720404958083,100.0,129.11,129.1,0.8342514]
[1720404958679,0.17,129.11,129.1,0.8342514]
[1720404958883,100.17,129.11,129.1,0.8342514]
[1720404960013,100.0,129.11,129.1,0.8342514]
[1720404960583,100.0,129.13,129.1,0.8342514]
[1720404960791,100.0,129.13,129.1,65.8342514]
[1720404960990,15.0,129.24,129.1,65.8342514]
[1720404960991,100.0,129.18,129.1,65.8342514]
[1720404961182,100.0,129.15,129.13,41.05]
[1720404961377,100.0,129.15,129.14,45.0]
[1720404961788,100.0,129.17,129.14,45.0]
[1720404962299,100.0,129.19,129.14,45.0]
[1720404962506,100.0,129.21,129.14,45.0]
[1720404962701,100.0,129.21,129.17,41.05]
[1720404963012,100.0,129.19,129.18,45.0]
[1720404963599,100.0,129.16,129.13,41.05]
[1720404963786,100.0,129.16,129.14,65.0]
[1720404963986,100.0,129.18,129.14,65.0]
[1720404964213,100.0,129.2,129.14,65.0]
[1720404964388,100.0,129.23,129.17,41.05]
[1720404964716,100.0,129.28,129.22,41.05]
[1720404964895,100.0,129.26,129.23,65.0]
[1720404965599,100.0,129.28,129.23,65.0]
[1720404965779,100.0,129.27,129.23,65.0]
[1720404965982,100.0,129.25,129.23,65.0]
[1720404966202,15.0,129.35,129.23,45.0]
[1720404966505,100.0,129.2,129.16,6.05424997]
[1720404966813,100.0,129.2,129.15,16.0795]
[1720404966984,100.0,129.15,129.1,0.8342514]
[1720404967184,100.0,129.13,129.1,41.8842514]
[1720404967399,100.0,129.11,129.1,0.8342514]
[1720404968199,130.0,129.11,129.1,0.8342514]
[1720404968704,130.17,129.11,129.1,0.8342514]
[1720404968917,130.0,129.11,129.1,0.8342514]
[1720404969408,100.0,129.16,129.1,0.8342514]
[1720404969587,100.0,129.16,129.12,50.56]
[1720404970100,100.0,129.18,129.12,73.67]
[1720404970406,100.0,129.22,129.16,50.56]
[1720404970704,100.0,129.22,129.17,65.0]
[1720404972106,100.0,129.2,129.17,65.0]
[1720404972285,100.0,129.2,129.17,45.0]
[1720404973902,100.0,129.18,129.17,45.0]
[1720404974098,100.0,129.18,129.16,50.56]
[1720404974302,100.0,129.21,129.16,50.56]
[1720404974497,100.0,129.18,129.16,50.56]
[1720404974701,100.0,129.16,129.12,50.56]
[1720404974996,100.0,129.15,129.12,50.56]
[1720404975195,100.0,129.13,129.12,50.56]
[1720404975421,100.0,129.15,129.1,0.8342514]
[1720404975599,15.3625,129.2,129.1,0.8342514]
[1720404975792,100.0,129.14,129.1,0.8342514]
[1720404975995,100.0,129.12,129.1,0.8342514]
[1720404977520,100.0,129.11,129.1,0.8342514]
[1720404978400,100.17,129.11,129.1,0.8342514]
[1720404979120,100.17,129.11,128.97,23.9442514]
[1720404979121,100.0,129.03,128.97,0.8342514]
[1720404979418,100.0,129.0,128.99,50.56]
[1720404979636,100.0,129.0,128.97,0.8342514]
[1720404979915,100.0,129.05,128.97,0.8342514]
[1720404980095,100.0,129.02,128.97,0.8342514]
[1720404980306,0.17,129.1,128.96,50.56]
[1720404980307,100.0,129.01,128.96,50.56]
[1720404980617,100.0,129.1,129.0,50.56]
[1720404980797,100.0,129.12,129.05,50.56]
[1720404981002,100.0,129.14,129.05,50.56]
[1720404981219,100.0,129.12,129.09,50.56]
[1720404981800,100.0,129.14,129.09,50.56]
[1720404982013,100.0,129.12,129.1,65.0]
[1720404982320,100.0,129.14,129.1,65.0]
[1720404982919,100.0,129.12,129.1,65.0]
[1720404983428,100.0,129.12,129.1,45.0]
[1720404983806,100.0,129.13,129.1,45.0]
[1720404984534,100.0,129.17,129.11,70.56]
[1720404984722,100.0,129.17,129.12,45.0]
[1720404984920,100.0,129.15,129.13,20.0]
[1720404985104,100.0,129.15,129.14,45.0]
[1720404986021,0.46850087,129.19,129.14,45.0]
[1720404986022,100.0,129.17,129.14,45.0]
[1720404986322,100.0,129.15,129.14,45.0]
[1720404986511,100.0,129.17,129.14,45.0]
[1720404987026,100.0,129.15,129.14,45.0]
[1720404987235,100.0,129.17,129.14,45.0]
[1720404987412,100.0,129.15,129.14,45.0]
[1720404988108,100.0,129.17,129.14,45.0]
[1720404988311,100.0,129.15,129.14,45.0]
[1720404989104,100.0,129.12,129.1,50.56]
[1720404989600,100.0,129.16,129.1,50.56]
[1720404990818,100.0,129.16,129.11,20.0]
[1720404991927,100.0,129.18,129.14,50.56]
[1720404992127,0.46850087,129.19,129.15,65.0]
[1720404992625,100.0,129.18,129.15,65.0]
[1720404993015,100.0,129.16,129.15,45.0]
[1720404993616,100.0,129.18,129.15,45.0]
[1720404995317,100.0,129.2,129.15,45.0]
[1720404995515,100.0,129.2,129.16,20.0]
[1720404995725,100.0,129.2,129.17,45.0]
[1720404995911,0.46850087,129.2,129.1,50.56]
[1720404996229,100.0,129.14,129.06,16.1861]
[1720404996731,100.0,129.14,129.09,41.33]
[1720404997512,100.0,129.14,129.1,20.0]
[1720404997732,100.0,129.12,129.1,20.0]
[1720404998232,0.46850087,129.19,129.1,20.0]
[1720404998233,100.0,129.14,129.1,20.0]
[1720404998534,100.0,129.17,129.13,41.33]
[1720404998710,0.46850087,129.19,129.14,20.0]